Cogmind - Beta 14 @@@ ROGUE MODE // 2024.10.07 @ 17:36:54 Player: Tereza Result: Destroyed by Y-54 Guardian with Gatling Laser Performance ------------- Evolutions (3) 1500 Regions Visited (11) 2200 Robots Destroyed (65) 325 Value Destroyed (3467) 3467 Prototype IDs (1) 20 Alien Tech Used (0) 0 Bonus (1073) 1073 TOTAL SCORE: 8585 Bonus ------- High Alert Combat Kills 366 Follower Combat Kills 7 Entered Garrisons 200 Used RIF Installer 500 Cogmind --------- Core Integrity 0/700 Matter 181/300 Energy 5/100 System Corruption 0% Temperature Cool (12) Movement Core (400) Ox7 Location -7/Factory Parts ------- > --- POWER (1) -------- (None) > --- PROPULSION (4) --- (None) > --- UTILITY (6) ------ Medium Storage Unit Improved Sensor Array Improved Signal Interpreter Core Analyzer Improved Kinecellerator > --- WEAPON (2) ------- Gauss Rifle Gauss Rifle > --- INVENTORY (10) --- Heavy Missile Launcher Peak State ------------ > --- POWER ------------ Cold Fusion Reactor > --- PROPULSION ------- Light Treads Light Treads Armored Medium Treads Armored Medium Treads > --- UTILITY ---------- Advanced Cooling System High-capacity Storage Unit Improved Sensor Array Layered Heavy Armor Plating Advanced Hacking Suite > --- WEAPON ----------- Tesla Rifle Enhanced Gauss Cannon > --- INVENTORY -------- Improved Deuterium Engine Micro Fission Core Light Treads Light Treads VSS Leg High-capacity Storage Unit Large Matter Pod Improved Signal Interpreter Improved Kinecellerator Hardened Medium Armor Plating Advanced Shield Generator Hacking Suite Relay Coupler [Swarmer] Relay Coupler [Grunt] Mass Driver Rocket Launcher Rocket Launcher Segregator [Rating: 65] Favorites ----------- Power Cold Fusion Reactor Engine Ion Engine Power Core Light Nuclear Core Reactor Cold Fusion Reactor Propulsion Light Treads Treads Light Treads Leg Aluminum Leg Utility High-capacity Storage Unit Device Advanced Cooling System Storage High-capacity Storage Unit Processor Improved Signal Interpreter Hackware Advanced Hacking Suite Protection Layered Heavy Armor Plating Weapon Light Cannon Energy Gun Heavy Laser Ballistic Gun Makeshift Shrapnel Gun Ballistic Cannon Light Cannon Build | -11 -10 -10 -10 -9 -8 -8 -8 -8 -7 -7 -7 ------- Run | Yrd Mat Min Exi Min Mat Gar Mat Sto Fac Was Fac Slots Evolved 6 | . . . . . 4 . . . 2 . . Power . | . . . . . . . . . . . . Propulsion 2 | . . . . . 1 . . . 1 . . Utility 4 | . . . . . 3 . . . 1 . . Weapon . | . . . . . . . . . . . . Parts Attached 90 | 6 1 . 1 2 4 48 . 9 7 3 9 Power 7 | 1 . . . . . 4 . 2 . . . Engine 4 | 1 . . . . . 3 . . . . . Core 2 | . . . . . . 1 . 1 . . . Reactor 1 | . . . . . . . . 1 . . . Propulsion 31 | 1 . . . 1 1 23 . 3 1 1 . Treads 17 | 1 . . . . 1 11 . 2 1 1 . Leg 14 | . . . . 1 . 12 . 1 . . . Wheel . | . . . . . . . . . . . . Hover . | . . . . . . . . . . . . Flight . | . . . . . . . . . . . . Utility 29 | 1 . . 1 1 2 10 . 2 5 2 5 Device 7 | . . . . . . 2 . 1 2 . 2 Storage 7 | 1 . . 1 . . 2 . 1 . 1 1 Processor 7 | . . . . 1 1 2 . . 1 . 2 Hackware 2 | . . . . . . 1 . . . 1 . Protection 6 | . . . . . 1 3 . . 2 . . Artifact . | . . . . . . . . . . . . Weapon 23 | 3 1 . . . 1 11 . 2 1 . 4 Energy Gun 5 | 3 . . . . . 1 . 1 . . . Energy Cannon . | . . . . . . . . . . . . Ballistic Gun 12 | . . . . . . 8 . . 1 . 3 Ballistic Cannon 6 | . 1 . . . 1 2 . 1 . . 1 Launcher . | . . . . . . . . . . . . Special Weapon . | . . . . . . . . . . . . Impact Weapon . | . . . . . . . . . . . . Slashing Weapon . | . . . . . . . . . . . . Piercing Weapon . | . . . . . . . . . . . . Special Melee Weapon . | . . . . . . . . . . . . Unidentified Prototypes 1 | . . . . . . . . 1 . . . Parts Lost 25 | . . . . . . 13 . 3 1 8 . Power 2 | . . . . . . 1 . 1 . . . Propulsion 11 | . . . . . . 8 . 1 . 2 . Utility 6 | . . . . . . 1 . . . 5 . Weapon 6 | . . . . . . 3 . 1 1 1 . Highest Loss Streak 7 | . . . . . . 5 . 1 1 7 . To Critical Strikes . | . . . . . . . . . . . . Average Slot Usage (%) 81 | . 71 71 71 92 82 82 90 89 92 54 13 Engine 6 | . 14 14 14 14 9 6 9 4 . . . Reactor 1 | . . . . . . . . 4 7 3 . Treads 16 | . 14 14 14 14 18 11 18 22 30 15 . Leg 6 | . . . . 9 9 14 9 4 . . . Device 5 | . . . . . . 3 9 9 14 8 2 Storage 9 | . 14 14 14 14 9 9 9 9 7 3 . Processor 5 | . . . . 11 15 12 . . 5 3 9 Hackware 3 | . . . . . . 1 9 9 7 3 . Protection 4 | . . . . . 4 4 9 9 2 3 . Energy Gun 6 | . 17 14 14 14 3 2 9 9 3 . . Ballistic Gun 3 | . . . . . . 8 9 . 3 3 . Ballistic Cannon 8 | . 10 14 14 14 14 6 . 8 7 3 . Peak Build Rating 65 | 5 5 5 6 10 16 56 56 62 65 59 25 Average Rating 34 | 3 4 5 5 8 14 26 56 59 58 32 7 On Entrance 23 | . 5 5 5 6 10 16 56 56 62 59 2 Naked Turns 116 | . . . . . . . . . . 64 52 Heaviest Build 88 | 13 15 15 20 20 28 72 72 88 88 76 5 Greatest Support 94 | 20 20 20 20 20 40 54 54 74 94 94 3 Greatest Overweight (x) 18 | 3 . . . 1 . 15 1 1 . 18 1 Average Overweight (x) . | . . . . . . 1 1 1 . . . Largest Inventory Capacity 20 | 8 8 8 10 10 10 20 20 20 20 20 10 Average Capacity 16 | 7 8 8 9 10 10 19 20 20 20 13 5 Most Carried 20 | 7 8 8 10 10 10 20 20 20 20 20 5 Average Carried 15 | 5 7 8 9 10 9 16 20 19 19 12 4 Final Capacity 20 | 8 8 8 10 10 10 20 20 20 20 5 10 Final Carried 20 | 7 8 8 10 10 10 20 20 20 20 5 1 Class Distribution -------------------- 82% | Mutant 17% | Scavenger-Mutant Dominant Class ---------------- Mutant | -10/Materials Mutant | -10/Mines Mutant | -10/Exiles Mutant | -9/Mines Mutant | -8/Materials Scavenger-Mutant | -8/Garrison Mutant | -8/Materials Mutant | -8/Storage Mutant | -7/Factory Mutant | -7/Waste Mutant | -7/Factory Resources | -11 -10 -10 -10 -9 -8 -8 -8 -8 -7 -7 -7 ----------- Run | Yrd Mat Min Exi Min Mat Gar Mat Sto Fac Was Fac Matter Collected 2465 | 193 67 . 40 69 64 1032 . 772 128 . 100 Remotely . | . . . . . . . . . . . . Salvage Created 1966 | . . . 9 38 80 736 . 968 135 . . Parts 121 | . . . . 5 5 43 . 59 9 . . Haulers Intercepted 1 | . . . . . . . . 1 . . . Recyclers Shooed . | . . . . . . . . . . . . Parts Field Recycled . | . . . . . . . . . . . . Retrieved Matter . | . . . . . . . . . . . . Parts Self-Destructed . | . . . . . . . . . . . . Prevented . | . . . . . . . . . . . . Kills | -11 -10 -10 -10 -9 -8 -8 -8 -8 -7 -7 -7 ------- Run | Yrd Mat Min Exi Min Mat Gar Mat Sto Fac Was Fac Combat Hostiles Destroyed 60 | . . . . 3 1 27 . 25 4 . . Melee 2 | . . . . . . 2 . . . . . Guns 29 | . . . . . . 18 . 11 . . . Cannons 28 | . . . . 3 1 6 . 14 4 . . AOE 1 | . . . . . . 1 . . . . . Classes Destroyed 11 | . . . . 1 2 4 . 3 1 . . Hauler 1 | . . . . . . . . 1 . . . Operator 1 | . . . . . . . . 1 . . . Watcher 3 | . . . . . 1 . . 2 . . . Swarmer 13 | . . . . 3 . 4 . 6 . . . Saboteur 4 | . . . . . . 4 . . . . . Grunt 20 | . . . . . . 12 . 7 1 . . Duelist 1 | . . . . . . . . 1 . . . Sentry 15 | . . . . . 1 4 . 10 . . . Specialist 2 | . . . . . . 2 . . . . . Hunter 2 | . . . . . . 1 . 1 . . . Programmer 3 | . . . . . . . . . 3 . . Best Kill Streak 5 | . . . . 3 1 5 . 4 1 . . Combat Bots Only 5 | . . . . 3 1 5 . 4 1 . . Max Kills in Single Turn 2 | . . . . 1 1 2 . 2 1 . . Gunslinging 1 | . . . . . . 1 . . . . . Exploded 1 | . . . . . . 1 . . . . . Melee 1 | . . . . . . 1 . . . . . Uniques/NPCs Destroyed . | . . . . . . . . . . . . Combat | -11 -10 -10 -10 -9 -8 -8 -8 -8 -7 -7 -7 -------- Run | Yrd Mat Min Exi Min Mat Gar Mat Sto Fac Was Fac Hostile Shots Fired 410 | . . . . 4 6 201 . 96 27 9 67 Missed 121 | . . . . 4 2 61 . 22 6 1 25 Damage Taken 4388 | . . . . . 61 2011 . 1071 377 361 507 Core 1116 | . . . . . . 327 . 79 44 226 440 Absorbed by Shields . | . . . . . . . . . . . . Core Remaining (%) 75 | 100 . . . 100 . . . 26 . . . Volleys Fired 193 | . . . 5 5 5 96 . 66 14 . 2 Largest 2 | . . . 2 2 2 2 . 2 2 . 2 Hottest 126 | . . . 75 75 75 97 . 126 122 . 56 Shots Fired 379 | . . . 10 10 10 188 . 131 26 . 4 Gun 173 | . . . 5 5 1 79 . 67 12 . 4 Cannon 206 | . . . 5 5 9 109 . 64 14 . . Launcher . | . . . . . . . . . . . . Special . | . . . . . . . . . . . . Kinetic 297 | . . . 5 5 9 182 . 67 25 . 4 Thermal 53 | . . . . . . 6 . 47 . . . Explosive . | . . . . . . . . . . . . Electromagnetic 29 | . . . 5 5 1 . . 17 1 . . Robot Hit Streak 11 | . . . 2 2 4 11 . 10 5 . 6 Robot Miss Streak 7 | . . . 2 1 2 7 . 2 3 . . Penetration Max 1 | . . . . . . . . 1 . . . Secondary Targets 3 | . . . . . . 3 . . . . . Max Gunslinging Chain 1 | . . . . . . 1 . . . . . Shots Hit Robots 211 | . . . 2 6 5 105 . 72 17 . 4 Core Hits 105 | . . . 1 3 3 55 . 39 4 . . Critical Kills . | . . . . . . . . . . . . Critical Parts Destroyed 2 | . . . . . . 2 . . . . . Critical Strikes 17 | . . . . . . 5 . 8 3 . 1 Burn 2 | . . . . . . . . 2 . . . Destroy 3 | . . . . . . 2 . . . . 1 Blast 12 | . . . . . . 3 . 6 3 . . Melee Attacks . | . . . . . . . . . . . . Impact . | . . . . . . . . . . . . Slashing . | . . . . . . . . . . . . Piercing . | . . . . . . . . . . . . Sneak Attacks . | . . . . . . . . . . . . Combat Hostiles . | . . . . . . . . . . . . Follow-up Attacks . | . . . . . . . . . . . . Damage Inflicted 5151 | . . . 27 92 89 2101 . 2207 545 . 90 Guns 2140 | . . . 12 22 24 1067 . 755 170 . 90 Cannons 2769 | . . . 15 70 65 988 . 1328 303 . . Explosions 242 | . . . . . . 46 . 124 72 . . Melee . | . . . . . . . . . . . . Ramming . | . . . . . . . . . . . . Kinetic 4053 | . . . 15 70 65 1979 . 1366 468 . 90 Thermal 664 | . . . . . . 76 . 516 72 . . Explosive 170 | . . . . . . 46 . 124 . . . Electromagnetic 264 | . . . 12 22 24 . . 201 5 . . Impact . | . . . . . . . . . . . . Slashing . | . . . . . . . . . . . . Piercing . | . . . . . . . . . . . . Highest Corruption 3 | . . . . . . . . 3 . . . Average Corruption 2 | . . . . . . . . 2 . . . Corruption Purged . | . . . . . . . . . . . . Corruption Blocked . | . . . . . . . . . . . . Effects 31 | . . . . . . . . 31 . . . Message Errors 8 | . . . . . . . . 8 . . . Matter Fused 9 | . . . . . . . . 9 . . . Heat Flow Errors 1 | . . . . . . . . 1 . . . Energy Discharges 1 | . . . . . . . . 1 . . . Parts Fused 1 | . . . . . . . . 1 . . . Data Loss (minor) 5 | . . . . . . . . 5 . . . Misfires 3 | . . . . . . . . 3 . . . Alerts 2 | . . . . . . . . 2 . . . Weapon Failures 1 | . . . . . . . . 1 . . . Overload Shots . | . . . . . . . . . . . . Overflow Damage 117 | . . . . . . . . 21 96 . . Projectiles 56 | . . . . . . . . 21 35 . . Explosions 61 | . . . . . . . . . 61 . . Melee . | . . . . . . . . . . . . Knockbacks 27 | . . . . . . 14 . 11 2 . . Impact . | . . . . . . . . . . . . Kinetic 25 | . . . . . . 13 . 10 2 . . Secondary 2 | . . . . . . 1 . 1 . . . Self-Inflicted Damage 90 | . . . . . . . . 30 60 . . Shots 2 | . . . . . . . . 1 1 . . Rammed 1 | . . . . . . . . . . . 1 Targets Rammed 1 | . . . . . . . . . . . 1 Kicked . | . . . . . . . . . . . . Crushed . | . . . . . . . . . . . . Highest Temperature 291 | . . . 30 60 18 291 . 231 . . 4 Average Temperature 60 | . . . 15 26 13 68 . 59 . . 4 Received Heat Transfer 1479 | . . . . . 18 936 . 378 99 . 48 Effects 1 | . . . . . . 1 . . . . . Energy Bleed 1 | . . . . . . 1 . . . . . Siege Activations . | . . . . . . . . . . . . Robots Corrupted . | . . . . . . . . . . . . Combat Hostiles . | . . . . . . . . . . . . Parts Fried 1 | . . . . . . . . 1 . . . Impact Corruptions . | . . . . . . . . . . . . Robots Melted . | . . . . . . . . . . . . Combat Hostiles . | . . . . . . . . . . . . Parts Melted . | . . . . . . . . . . . . Heat Transferred 1345 | . . . . . . 148 . 1147 50 . . Parts Sabotaged 16 | . . . . . . 16 . . . . . Parts Stolen . | . . . . . . . . . . . . Parts Stripped . | . . . . . . . . . . . . Power Chain Reactions 1 | . . . . . . . . . 1 . . Alert | -11 -10 -10 -10 -9 -8 -8 -8 -8 -7 -7 -7 ------- Run | Yrd Mat Min Exi Min Mat Gar Mat Sto Fac Was Fac Peak Influence 1458 | . 12 4 . 87 100 1458 710 610 172 15 225 Initial 710 | . . 4 . . 33 65 710 299 172 . . Average 389 | . 6 4 . 77 44 659 710 381 98 3 122 Maximum Alert Level 4 | . . . . . . 4 3 2 . . 1 Low Security (%) 38 | 100 100 100 . 100 100 17 . 6 100 100 73 Level 1 25 | . . . . . . 25 . 47 . . 26 Level 2 19 | . . . . . . 12 . 45 . . . Level 3 7 | . . . . . . 19 100 . . . . Level 4 9 | . . . . . . 25 . . . . . Level 5 . | . . . . . . . . . . . . High Security . | . . . . . . . . . . . . Max Security . | . . . . . . . . . . . . Squads Dispatched 4 | . . . . . . . . 2 2 . . Investigation 1 | . . . . . . . . 1 . . . Extermination 2 | . . . . . . . . . 2 . . Reinforcement 1 | . . . . . . . . 1 . . . Assault . | . . . . . . . . . . . . Garrison . | . . . . . . . . . . . . Intercept . | . . . . . . . . . . . . Searches Triggered . | . . . . . . . . . . . . Construction Impeded . | . . . . . . . . . . . . Haulers Reinforced . | . . . . . . . . . . . . Active Scanning Responses . | . . . . . . . . . . . . Cargo Convoy Interrupts . | . . . . . . . . . . . . Stealth | -11 -10 -10 -10 -9 -8 -8 -8 -8 -7 -7 -7 --------- Run | Yrd Mat Min Exi Min Mat Gar Mat Sto Fac Was Fac Distress Signals 4 | . . . . . . . . 4 . . . Communications Jammed . | . . . . . . . . . . . . Distress Signals . | . . . . . . . . . . . . Times Spotted 105 | . . . . 4 2 38 . 32 6 6 17 Peak Tracking Total 8 | . . . . 4 1 5 . 8 2 6 6 Tactical Retreats 11 | . . . . . . 4 . 2 . . 5 Traps | -11 -10 -10 -10 -9 -8 -8 -8 -8 -7 -7 -7 ------- Run | Yrd Mat Min Exi Min Mat Gar Mat Sto Fac Was Fac Traps Triggered 3 | . . . . . . . . 2 1 . . Indirectly . | . . . . . . . . . . . . Trap Hack Attempts . | . . . . . . . . . . . . Triggered . | . . . . . . . . . . . . Disarmed . | . . . . . . . . . . . . Reprogrammed . | . . . . . . . . . . . . Reused . | . . . . . . . . . . . . Traps Extracted . | . . . . . . . . . . . . Installed . | . . . . . . . . . . . . Triggered . | . . . . . . . . . . . . Machines | -11 -10 -10 -10 -9 -8 -8 -8 -8 -7 -7 -7 ---------- Run | Yrd Mat Min Exi Min Mat Gar Mat Sto Fac Was Fac Machines Disabled 18 | . . . . 2 1 7 . 7 1 . . Max in Single Turn 2 | . . . . 1 1 2 . 1 1 . . Garrison Relay 3 | . . . . . . 3 . . . . . Phase Generator 1 | . . . . . . 1 . . . . . Machines Repaired . | . . . . . . . . . . . . Machines Dismantled . | . . . . . . . . . . . . Machines Sabotaged . | . . . . . . . . . . . . Overloaded Fab Kills . | . . . . . . . . . . . . Hacking | -11 -10 -10 -10 -9 -8 -8 -8 -8 -7 -7 -7 --------- Run | Yrd Mat Min Exi Min Mat Gar Mat Sto Fac Was Fac Machines Accessed 20 | . 2 . 4 . 1 3 . 9 1 . . Terminals 14 | . 2 . . . . 3 . 8 1 . . Fabricators . | . . . . . . . . . . . . Repair Stations 1 | . . . . . . . . 1 . . . Recycling Units . | . . . . . . . . . . . . Scanalyzers . | . . . . . . . . . . . . Garrison Access 1 | . . . . . 1 . . . . . . Total Hacks 71 | . 4 . 30 . 1 3 . 31 2 . . Successful 46 | . 3 . 30 . 1 2 . 9 1 . . Failed 25 | . 1 . . . . 1 . 22 1 . . Catastrophic 2 | . . . . . . 1 . 1 . . . Database Lockouts . | . . . . . . . . . . . . Manual 18 | . 2 . 1 . . . . 14 1 . . Terminals 36 | . 4 . . . . 3 . 27 2 . . Fabricators . | . . . . . . . . . . . . Repair Stations 4 | . . . . . . . . 4 . . . Recycling Units . | . . . . . . . . . . . . Scanalyzers . | . . . . . . . . . . . . Garrison Access 1 | . . . . . 1 . . . . . . Terminal Hacks 43 | . 3 . 30 . . 2 . 7 1 . . Record 30 | . . . 30 . . . . . . . . Open Door 2 | . . . . . . . . 2 . . . Level Access Points 1 | . . . . . . . . 1 . . . Alert Level 2 | . . . . . . . . 1 1 . . Unreport Threat 2 | . . . . . . . . 2 . . . Dispatch Records 1 | . 1 . . . . . . . . . . Surveillance Status 1 | . 1 . . . . . . . . . . Patrol Status 2 | . 1 . . . . . . 1 . . . Garrison Registry 1 | . . . . . . 1 . . . . . Patrol Navigation 1 | . . . . . . 1 . . . . . Fabricator Hacks . | . . . . . . . . . . . . Repair Station Hacks 2 | . . . . . . . . 2 . . . Scan Component 2 | . . . . . . . . 2 . . . Recycling Unit Hacks . | . . . . . . . . . . . . Scanalyzer . | . . . . . . . . . . . . Garrison Access Hacks 1 | . . . . . 1 . . . . . . Unlock Access 1 | . . . . . 1 . . . . . . Unauthorized Hacks . | . . . . . . . . . . . . Terminals . | . . . . . . . . . . . . Fabricators . | . . . . . . . . . . . . Repair Stations . | . . . . . . . . . . . . Recycling Units . | . . . . . . . . . . . . Scanalyzers . | . . . . . . . . . . . . Garrison Access . | . . . . . . . . . . . . Data Cores Recovered . | . . . . . . . . . . . . Used . | . . . . . . . . . . . . Hacking Detections 12 | . . . . . . 3 . 8 1 . . Full Trace Events 1 | . . . . . . . . 1 . . . Feedback Events . | . . . . . . . . . . . . Feedback Blocked . | . . . . . . . . . . . . Robot Schematics Acquired . | . . . . . . . . . . . . Robots Built . | . . . . . . . . . . . . Authchips . | . . . . . . . . . . . . Time . | . . . . . . . . . . . . Total Robot Build Rating . | . . . . . . . . . . . . Part Schematics Acquired . | . . . . . . . . . . . . Parts Built . | . . . . . . . . . . . . Authchips . | . . . . . . . . . . . . Time . | . . . . . . . . . . . . Total Part Build Rating . | . . . . . . . . . . . . Parts Repaired . | . . . . . . . . . . . . Time . | . . . . . . . . . . . . Parts Recycled . | . . . . . . . . . . . . Recycled Matter . | . . . . . . . . . . . . Retrieved Matter . | . . . . . . . . . . . . Retrieved Components . | . . . . . . . . . . . . Parts Scanalyzed . | . . . . . . . . . . . . Part Schematics Acquired . | . . . . . . . . . . . . Parts Damaged . | . . . . . . . . . . . . Bothacking | -11 -10 -10 -10 -9 -8 -8 -8 -8 -7 -7 -7 ------------ Run | Yrd Mat Min Exi Min Mat Gar Mat Sto Fac Was Fac Used RIF Installer 1 | . . . . . . 1 . . . . . Robots Hacked . | . . . . . . . . . . . . Non-combat . | . . . . . . . . . . . . Combat . | . . . . . . . . . . . . Robot Hacks Applied . | . . . . . . . . . . . . Relay Couplers Released 10 | . . . . . . 10 . . . . . Machine Destruction 10 | . . . . . . 10 . . . . . Fabnet Peak Effective % . | . . . . . . . . . . . . Robots Rewired 2 | . . . 2 . . . . . . . . Allies Hacked . | . . . . . . . . . . . . Hacks Repelled . | . . . . . . . . . . . . Allies | -11 -10 -10 -10 -9 -8 -8 -8 -8 -7 -7 -7 -------- Run | Yrd Mat Min Exi Min Mat Gar Mat Sto Fac Was Fac Total Allies 2 | . . . 2 . . . . . . . . Largest Group 2 | . . . 2 2 . . . . . . . Highest-Rated Group 29 | . . . 29 29 . . . . . . . Highest-Rated Ally 21 | . . . 21 21 . . . . . . . Total Orders . | . . . . . . . . . . . . Ally Attacks 5 | . . . . 5 . . . . . . . Total Damage 70 | . . . . 70 . . . . . . . Kills 1 | . . . . 1 . . . . . . . Allies Corrupted . | . . . . . . . . . . . . Allies Melted . | . . . . . . . . . . . . Intel | -11 -10 -10 -10 -9 -8 -8 -8 -8 -7 -7 -7 ------- Run | Yrd Mat Min Exi Min Mat Gar Mat Sto Fac Was Fac Robot Analysis Total . | . . . . . . . . . . . . Derelict Logs Recovered . | . . . . . . . . . . . . Drone Launches . | . . . . . . . . . . . . Drone Recoveries . | . . . . . . . . . . . . Exploration | -11 -10 -10 -10 -9 -8 -8 -8 -8 -7 -7 -7 ------------- Run | Yrd Mat Min Exi Min Mat Gar Mat Sto Fac Was Fac Turns Passed 7411 | 78 260 45 879 103 291 2405 43 2079 800 164 264 Spaces Moved 3549 | 42 149 29 512 51 168 834 18 733 426 167 420 Core 549 | 9 . . . . . 4 . . . 116 420 Treads 2608 | 33 149 29 512 37 168 452 18 733 426 51 . Legs 392 | . . . . 14 . 378 . . . . . Wheels . | . . . . . . . . . . . . Hover . | . . . . . . . . . . . . Flight . | . . . . . . . . . . . . Fastest Speed 50 | 50 160 160 160 160 160 160 250 246 165 50 50 Average Speed 182 | 149 160 160 160 168 160 240 250 247 165 90 52 Slowest Speed 950 | 200 160 160 160 190 160 800 250 250 165 950 100 Overloaded Moves . | . . . . . . . . . . . . Propulsion Burnouts . | . . . . . . . . . . . . Robots Hopped . | . . . . . . . . . . . . Cave-ins Triggered . | . . . . . . . . . . . . Exploration Rate (%) 35 | 4 35 7 92 16 18 75 4 80 13 76 11 Regions Visited 11 Branch Regions 4 Pre-discovered Areas 1 | . . . 1 . . . . . . . . Known Exits Taken 2 | . . . . . 1 . . 1 . . . Unknown Exits Taken 6 | 1 1 1 1 1 . . 1 . . . . Scrap Searched . | . . . . . . . . . . . . Spaces Dug 1 | . . . . . . . . 1 . . . Terrain Destroyed 186 | . . . . . . 126 . 50 10 . . Melee . | . . . . . . . . . . . . Projectile 34 | . . . . . . . . 26 8 . . AOE 152 | . . . . . . 126 . 24 2 . . Terrain Rammed . | . . . . . . . . . . . . Walls Destroyed . | . . . . . . . . . . . . Machines Disabled . | . . . . . . . . . . . . Actions | -11 -10 -10 -10 -9 -8 -8 -8 -8 -7 -7 -7 --------- Run | Yrd Mat Min Exi Min Mat Gar Mat Sto Fac Was Fac Total 4152 | 54 172 28 562 57 183 1050 17 883 507 177 462 Wait 147 | . 16 . . . . 24 . 35 41 8 23 Move 3538 | 41 148 28 511 50 167 832 17 732 426 166 420 Hop . | . . . . . . . . . . . . Pick Up 75 | 7 3 . 2 . 4 27 . 19 10 . 3 Fast Attach 46 | 5 1 . 1 2 2 26 . 2 1 3 3 Attach 28 | . . . . . 2 11 . 4 5 . 6 Detach 9 | . 1 . 1 . . 4 . . 1 . 2 Swap 16 | 1 . . . . . 11 . 3 1 . . Drop 56 | . 3 . 1 . 3 19 . 20 8 . 2 Fire 193 | . . . 5 5 5 96 . 66 14 . 2 Melee . | . . . . . . . . . . . . Ram 1 | . . . . . . . . . . . 1 Kick . | . . . . . . . . . . . . Crush . | . . . . . . . . . . . . Escape Stasis . | . . . . . . . . . . . . Rewire 43 | . . . 41 . . . . 2 . . . Trap . | . . . . . . . . . . . . Miscellaneous . | . . . . . . . . . . . . Route ------- -11/Scrapyard -10/Materials -10/Mines -10/Exiles (discovered 2 exits: [*Min x2]) -9/Mines -8/Materials -8/Garrison (discovered 3 exits: [*Mat x3]) -8/Materials -8/Storage -7/Factory -7/Waste -7/Factory History --------- Turn | Location | Event 16 | -11/Scrapyard | Discovered new exit (range 15) 79 | -11/Scrapyard | Entered Materials 255 | -10/Materials | Discovered new exit (range 16) 303 | -10/Materials | Build established: Mutant 339 | -10/Materials | Entered Mines 378 | -10/Mines | Deemed a non-threat by the Exiles lab entrance 378 | -10/Mines | Discovered new exit (range 5) 384 | -10/Mines | Entered Exiles 384 | -10/Exiles | Found Exiles lab destroyed 408 | -10/Exiles | Discovered new exit (range 15) 846 | -10/Exiles | Learned location of Zion (-7) 1250 | -10/Exiles | Discovered new exit (range 10) 1263 | -10/Exiles | Entered Mines 1263 | -9/Mines | Accompanied by 2 allies 1350 | -9/Mines | Met a Derelict bent on vengeance 1353 | -9/Mines | Discovered new exit (range 9) 1366 | -9/Mines | Entered Materials 1366 | -8/Materials | Evolved 4 slots: Propulsion x1, Utility x3 1656 | -8/Materials | Identified exit to Garrison 1657 | -8/Materials | Entered Garrison 1751 | -8/Garrison | Triggered checkpoint 1788 | -8/Garrison | Garrison Relay disabled 1931 | -8/Garrison | Triggered checkpoint 2049 | -8/Garrison | Installed Relay Interface Framework 2068 | -8/Garrison | Build established: Scavenger-Mutant 2081 | -8/Garrison | Phase Generator disabled 2274 | -8/Garrison | Triggered checkpoint 2326 | -8/Garrison | Triggered checkpoint 2464 | -8/Garrison | Triggered checkpoint 2548 | -8/Garrison | Lost 4 parts (3n1w) 2578 | -8/Garrison | Build established: Mutant 2787 | -8/Garrison | Triggered checkpoint 2812 | -8/Garrison | Garrison Relay disabled 2897 | -8/Garrison | Build established: Scavenger-Mutant 3130 | -8/Garrison | Garrison Relay disabled 3204 | -8/Garrison | Discovered new exit (range 9) 3271 | -8/Garrison | Discovered new exit (range 14) 3271 | -8/Garrison | Discovered new exit (range 44) 3271 | -8/Garrison | Discovered new exit (range 73) 3297 | -8/Garrison | Build established: Mutant 3638 | -8/Garrison | Core integrity fell below 50% 3671 | -8/Garrison | Lost 5 parts (1p3n1w) 4062 | -8/Garrison | Entered Materials 4062 | -8/Materials | Discovered new exit (range 8) 4105 | -8/Materials | Entered Storage 4689 | -8/Storage | Identified exit to Factory 6184 | -8/Storage | Entered Factory 6184 | -7/Factory | Evolved 2 slots: Propulsion x1, Utility x1 6728 | -7/Factory | Discovered new exit (range 8) 6746 | -7/Factory | Identified exit to Lower Caves 6984 | -7/Factory | Sucked down chute 6984 | -7/Factory | Entered Waste 6998 | -7/Waste | Spotted C-40 Crusher 7030 | -7/Waste | Spotted C-40 Crusher 7033 | -7/Waste | Spotted C-40 Crusher 7045 | -7/Waste | Spotted C-40 Crusher 7054 | -7/Waste | Spotted C-40 Crusher 7064 | -7/Waste | Spotted C-40 Crusher 7064 | -7/Waste | Crushed by Compactor (1 part destroyed, 2 dropped) 7067 | -7/Waste | Crushed by Compactor (1 part destroyed, 1 dropped) 7070 | -7/Waste | Crushed by Compactor (1 part destroyed, 2 dropped) 7075 | -7/Waste | Crushed by Compactor (1 part destroyed, 2 dropped) 7078 | -7/Waste | Crushed by Compactor (1 part destroyed, 1 dropped) 7109 | -7/Waste | Lost 7 parts (2n4u1w) 7114 | -7/Waste | Crushed by Compactor (1 part destroyed) 7140 | -7/Waste | Discovered new exit (range 16) 7148 | -7/Waste | Entered Factory 7236 | -7/Factory | Core integrity fell below 50% 7271 | -7/Factory | Core integrity fell below 20% 7412 | -7/Factory | Destroyed by Y-54 Guardian with Gatling Laser Last Messages --------------- K-01 Serf cleans the Fusion Modulator. Dropped Assault Cannon. Acquired Gauss Rifle. Acquired Core Analyzer. Penetrated by Slug. K-01 Serf collects debris. Slug penetrates Wall. R-06 Scavenger suffers critical hit (Destroy). R-06 Scavenger destroyed. Slug penetrates Wall. K-01 Serf collects debris. K-01 Serf destroyed. Acquired 100 matter. Slug penetrates Door. Acquired Imp. Signal Interpreter. Slammed into W-25 Informer. Acquired Med. Storage Unit. Drone sends a signal. Slug penetrates Y-54 Guardian. Y-54 Guardian suffers critical hit (Destroy). Map ----- +----------------------------------------------------+ | ??########### + #?????????????????????? | | ????????????# # ! #?????????????????????? | | ????????????# #??#######?????????????????????? | | ????????????# #??????????????????????????????? | | ????????????# #??????????????????????????????? | | ????????????# #??????????????????????????????? | | ????????????# #??????????????????????????????? | | ????????????+ #??????????????????????????????? | | ????????????# #??????????????????????????????? | | ????????????# #??????????????????????????????? | | ????????????# #??????????????????????????????? | | ?????######## #??????????????????????????????? | | ????## #??????????????????????????????? | | ????# #??????????????????????????????? | | ????#T ! ! +??????????????????????????????? | | ????## !!! #??????????????????????????????? | | ?????# !! #?########?????????????????????? | | ####### #?# #?????????????????????? | | # #?# """ #?????????????????????? | | # #?# """ #?????????????????????? | | # h #?# """ #?????????????????????? | | # """""" #?# #?????????????????????? | | """ # """""" #?# """ #?????????????????????? | | """ # """""" #?# """ #?????????????????????? | | """ +^ """""" ### """ #?????????????????????? | | # """""" ## @ #?????????????????????? | | """ # """""" #######Y#######???????????????? | | """ # """""" #?????????? | | """ !# """""" ????????? | | # """""" #?????????? | | ####### ############### ] #?????????? | | ??????# #?????????????????###?????????? | | ??????##############?????????????????????????????? | | | | | | | | | | | | | | | | | | | | | | | | | | | | | | | | | | | +----------------------------------------------------+ Best States ------------- Heat Dissipation 65 Energy Generation 18 Energy Capacity 250 Matter Stores 300 Matter Capacity 450 Sight Range 20 Robot Scan Range 15 Terrain Scan Density 10 Armor Coverage 600 Evasion (%) 50 Targeting Accuracy 5 Core Analysis 6 Armor Integrity Analysis 30 Recoil Reduction 4 Kinecelleration 40 Offensive Hacking 14 Defensive Hacking 14 Item Schematics ----------------- None Robot Schematics ------------------ None Fabricated ------------ Nothing Alien Tech Used ----------------- None Achievements -------------- Oh No You Don't! Challenges ------------ None Game ------ Seed FieldGlidesysRifle Manual? 0 Play Time 00:43:58 Cumulative 61.4 hours Start 2024.10.07 @ 16:55:13 End 2024.10.07 @ 17:36:54 Sessions 1 Manual Loads 0 Difficulty Rogue Special Mode None Game No. 70 Rogue 70 Adventurer 0 Explorer 0 Win Type - Total 0 Types 0/0/0/0/0/0/0/0/0 Lore% 43 Gallery% 39 Achievement% 33 Wizard Run 0 Options --------- Layout 1 ASCII 0 Keyboard 1 Movement Numpad Keybinds 0 Fullscreen 1 Font 24/Smallcaps Map View 50x35 Zoom Use 0% Tactical HUD 0 Map Filters NONE Filters NONE Steam 1 RUN: 57db2415-3e63-4d30-93c8-73109462a754